[Event "Czech Open-GM 2022"]
[Site "Pardubice"]
[Date "2022.07.24"]
[Round "3.40"]
[White "Malek, Daniel"]
[Black "Hassemeier, Mika"]
[Result "1-0"]
[ECO "B52"]
[WhiteElo "2355"]
[BlackElo "2166"]
[Annotator "TA"]
[PlyCount "63"]
[EventDate "2022.07.22"]
[EventType "swiss"]
[EventCountry "CZE"]
[SourceTitle "playchess.com"]
[Source "ChessBase"]
[SourceQuality "1"]
[TimeControl "40/5400+30:1800+30"]

{[%evp 12,63,17,24,25,19,25,22,27,21,33,17,40,44,29,27,40,9,27,23,50,30,30,30,32,31,77,78,94,89,104,104,135,114,130,136,162,159,164,109,162,175,224,231,229,191,169,182,318,328,363,359,956,921]} 1. e4 {[%emt 0:00:04]} c5 {[%emt 0:00:07]} 2. Nf3 {[%emt 0:00:05]} d6 {[%emt 0:00:08]} 3. Bb5+ {[%emt 0:00:05]} Bd7 {[%emt 0:00:12]} 4. Bxd7+ {[%emt 0:00:12]} Qxd7 {[%emt 0:00:09]} 5. c4 {[%emt 0:00:26]} e5 {[%emt 0:00:20]} 6. Nc3 {[%emt 0:00:24]} Nc6 {[%emt 0:00:30]} 7. d3 {[%emt 0:00:37]} Be7 {[%emt 0:01:23] now scores much better than the old 7...g6. B52: Sicilian: Moscow Variation with 3...Bd7.} 8. a3 {[%emt 0:00:40]} Bd8 {[%emt 0:01:17]} 9. O-O {[%emt 0:01:35]} Nge7 {[%emt 0:01:23] The position is equal.} 10. Rb1 {[%emt 0:01:43]} a5 {[%emt 0:01:33]} 11. Ne1 {[%emt 0:07:04] [#]} Ng6 $146 {[%emt 0:07:21]} ({Predecessor:} 11... O-O 12. Nc2 Nd4 13. Ne3 f5 14. exf5 Ndxf5 15. Nxf5 Rxf5 16. Be3 b6 17. b4 axb4 18. axb4 {1-0 (41) Hellers,F (2592)-Baches Garcia,G (2322) Chess.com INT 2020}) 12. Nc2 {[%emt 0:06:08]} O-O {[%emt 0:09:57]} 13. Ne3 {[%emt 0:01:34]} Nd4 {[%emt 0:05:06]} 14. Ncd5 {[%emt 0:07:45]} a4 {[%emt 0:04:59]} 15. Bd2 {[%emt 0:06:53]} f5 {[%emt 0:17:33]} 16. Nxf5 {[%emt 0:03:22]} Nxf5 {[%emt 0:00:32]} 17. exf5 {[%emt 0:00:13]} Qxf5 {[%emt 0:02:08]} 18. Be3 {[%emt 0:00:38]} Nf4 {[%emt 0:03:39]} (18... Qe6 $14) 19. Bxf4 $16 {[%emt 0:02:09]} exf4 {[%emt 0:00:52]} 20. Qf3 {[%emt 0:02:22]} Bg5 {[%emt 0:11:38]} 21. Rfe1 {[%emt 0:01:54]} Rae8 {[%emt 0:02:56]} 22. Nc3 {[%emt 0:07:18] White is more active.} Bf6 {[%emt 0:06:30]} 23. Nxa4 {[%emt 0:00:30]} Bd4 {[%emt 0:00:45]} 24. Nc3 {[%emt 0:04:49]} (24. Qxb7 Qxd3 25. Nc3 (25. Qd5+ Kh8 $15) 25... Qxc4 $11) 24... Re5 {[%emt 0:08:37]} 25. h3 {[%emt 0:15:59]} (25. Qxb7 $6 Qxd3 26. Rxe5 dxe5 $14) (25. Nb5 $18) 25... Rfe8 {[%emt 0:01:47]} (25... Qh5 $16 {is a better defense.}) 26. Rxe5 $18 {[%emt 0:00:08]} Qxe5 {[%emt 0:00:50]} (26... dxe5 $142 27. Re1 (27. Qxb7 Qxd3 28. Qd5+ Kh8 $16) 27... Rd8) 27. Qxb7 {[%emt 0:06:39]} f3 {[%emt 0:02:32]} 28. Qxf3 {[%emt 0:03:56] Black must now prevent Qd5+.} Rf8 {[%emt 0:00:08] [#]} 29. Qe4 {[%emt 0:00:34] aiming for Qxe5.} ({Resist} 29. Qd5+ Qxd5 30. cxd5 (30. Nxd5 Rxf2 31. Kh2 Be5+ 32. Kg1 Bd4 $14) 30... Rxf2 $16) 29... Qg5 {[%emt 0:03:29]} (29... Rxf2 $142 30. Qxe5 dxe5) 30. Rf1 {[%emt 0:01:30]} Bxf2+ {[%emt 0:02:20]} 31. Kh1 {[%emt 0:00:36] Strongly threatening Qe6+.} Kh8 $2 {[%emt 0:04:19] [#]} (31... Qd8 32. Nd5 Bd4 33. Rxf8+ Qxf8) 32. Rxf2 $1 {[%emt 0:01:49] Weighted Error Value: White=0.08 (flawless) /Black=0.26 (precise)} 1-0

[Event "Czech Open-GM 2022"]
[Site "Pardubice"]
[Date "2022.07.24"]
[Round "3.41"]
[White "Zaehringer, Daniel"]
[Black "Rabatin, Jakub"]
[Result "1/2-1/2"]
[ECO "E81"]
[WhiteElo "2166"]
[BlackElo "2349"]
[Annotator "TA"]
[PlyCount "128"]
[EventDate "2022.07.22"]
[EventType "swiss"]
[EventCountry "CZE"]
[SourceTitle "playchess.com"]
[Source "ChessBase"]
[SourceQuality "1"]
[TimeControl "40/5400+30:1800+30"]

{[%evp 14,128,51,40,46,48,74,38,29,32,41,14,28,32,26,40,33,39,31,-43,-60,-92,-52,-95,-93,-212,-212,-222,-180,-164,-68,-67,-61,-105,-113,-143,-153,-138,-145,-343,-150,-159,-146,-226,-112,-127,-118,-112,-59,-60,-79,-142,-83,-59,-65,-102,-95,-98,-91,-96,-86,-94,-86,-86,-67,-65,-8,-9,0,-11,-11,-26,-30,-51,-6,-21,-21,-51,-51,-51,-51,-51,-21,-51,0,-51,-21,-51,-21,-21,-20,-21,-21,-29,-26,-108,-37,-38,-20,-20,-24,-31,-8,-9,0,0,0,0,0,-6,-6,-20,-20,-20,-20,-37,-37]} 1. d4 {[%emt 0:02:14]} g6 {[%emt 0:00:19]} 2. c4 {[%emt 0:00:05]} Bg7 {[%emt 0:00:04]} 3. Nc3 {[%emt 0:00:06]} d6 {[%emt 0:00:04]} 4. e4 {[%emt 0:00:10][%cal Be2e4,Be4e5][%mdl 32]} Nf6 {[%emt 0:00:21]} 5. f3 {[%emt 0:00:10]} O-O {[%emt 0:00:10]} 6. Be3 {[%emt 0:00:04]} a6 {[%emt 0:00:49]} 7. Qd2 {[%emt 0:01:21]} Nbd7 {[%emt 0:00:26]} 8. O-O-O {[%emt 0:01:49]} b5 {[%emt 0:04:15] E81: King's Indian: Sämisch: 6th move deviations (including 6 Be3 c6).} 9. e5 {[%emt 0:01:01]} Ne8 {[%emt 0:01:57] has lost popularity (9...b4).} 10. c5 {[%emt 0:00:46] White is more active.} (10. h4 $5 {[%cal Rh4h5]}) 10... c6 {[%emt 0:08:35] White is slightly better.} 11. f4 $1 {[%emt 0:01:45]} f6 {[%emt 0:44:45][%cal Rf6e5] [#]} 12. Nf3 $146 {[%emt 0:19:49] aiming for h4.} ({Predecessor:} 12. exd6 exd6 13. g4 f5 14. gxf5 Rxf5 15. Bd3 Rf8 16. Be4 Qc7 {0-1 (16) Sirotkin,E (1354)-Susla,V (1973) LSS email 2014}) 12... fxe5 {[%emt 0:02:38]} 13. dxe5 {[%emt 0:07:02]} dxe5 {[%emt 0:02:38]} 14. Nxe5 {[%emt 0:07:19]} Bxe5 {[%emt 0:00:27]} 15. fxe5 {[%emt 0:00:05]} Qc7 {[%emt 0:04:53]} 16. e6 {[%emt 0:18:29]} (16. Bh6 Ng7 $11) (16. Be2 $14) 16... Ndf6 $1 $15 {[%emt 0:09:14]} 17. h4 {[%emt 0:13:02]} Ng7 {[%emt 0:05:28]} 18. Be2 {[%emt 0:01:15][%cal Oh4h5]} Bxe6 {[%emt 0:02:33]} 19. h5 {[%emt 0:05:49]} (19. Bh6 $17) 19... Rad8 $19 {[%emt 0:04:32]} (19... gxh5 20. Bh6 $17) 20. Qe1 {[%emt 0:00:19]} Rxd1+ {[%emt 0:01:18]} (20... gxh5 21. Bh6) (20... Nfxh5 21. Bxh5 Nxh5 22. Qh4) (20... Ngxh5 21. Bh6 Ng7 22. Bd3) 21. Bxd1 {[%emt 0:00:09]} Qe5 {[%emt 0:01:43]} ({And not} 21... gxh5 22. Bd2 $17 (22. Bh6 Ng4 $17)) (21... Ngxh5 22. Bxh5 (22. Bh6 Ng7 $17) 22... Nxh5 23. Bh6 $15) (21... Nfxh5 $19 {Strongly threatening ...b4.} 22. Bxh5 gxh5) 22. hxg6 $15 {[%emt 0:00:26]} hxg6 {[%emt 0:00:05]} 23. Bh6 {[%emt 0:04:00]} Qxc5 {[%emt 0:03:00]} 24. Bc2 {[%emt 0:04:49]} ({Wrong is} 24. Bxg7 $2 Qg5+ 25. Kb1 Bf5+ 26. Bc2 Bxc2+ 27. Kxc2 Qxg2+ 28. Kb1 Kxg7 $19) 24... Bf5 {[%emt 0:00:26]} 25. Bb3+ {[%emt 0:03:58]} e6 {[%emt 0:00:10]} 26. a3 $2 {[%emt 0:01:45]} (26. Qe3 $17 {is a better defense.} Qxe3+ 27. Bxe3) 26... a5 {[%emt 0:00:17]} (26... Ng4 $19 27. Bxg7 Kxg7) 27. Be3 {[%emt 0:02:26]} Qe5 {[%emt 0:00:29] [#] ...b4 is the strong threat.} 28. Qd2 {[%emt 0:00:16]} (28. Bb6 $17 {was worth a try.} Qxe1+ 29. Rxe1) 28... Ne4 {[%emt 0:01:54]} (28... b4 $19 {is more deadly.} 29. axb4 axb4) 29. Nxe4 $17 {[%emt 0:01:16]} Qxe4 {[%emt 0:00:05][%csl Gf5][%cal Re4b1]} 30. Ba2 {[%emt 0:00:34] Against Qb1+} Qd3 {[%emt 0:01:00]} (30... b4 $17 {[%cal Ob4b3] White must now prevent ...b3!} 31. Bd4 Nh5) 31. Qxd3 $15 {[%emt 0:01:16]} Bxd3 {[%emt 0:00:02]} 32. Bd4 {[%emt 0:01:31]} (32. Rh4 $142) 32... Rf1+ {[%emt 0:00:41]} ({Black should try} 32... Be4 33. Rd1 Bxg2) 33. Rxf1 $17 {[%emt 0:00:02]} Bxf1 {[%emt 0:00:05][%cal Bd3f1,Bf1h3,Bh3f5][%mdl 4128] Endgame KBB-KBN} 34. g3 {[%emt 0:01:24]} Bh3 {[%emt 0:00:08]} 35. Be5 {[%emt 0:00:26]} Kf7 {[%emt 0:00:13]} 36. Kd2 {[%emt 0:00:06]} Nf5 {[%emt 0:00:36]} 37. Bb1 {[%emt 0:00:16]} Ne7 {[%emt 0:01:13]} 38. Be4 {[%emt 0:00:22]} Bf5 {[%emt 0:01:16]} 39. Bf3 {[%emt 0:00:18]} c5 {[%emt 0:00:34]} (39... Nd5 $15) 40. Bc7 $11 {[%emt 0:00:59]} a4 {[%emt 0:00:18]} 41. Bd6 {[%emt 0:30:24]} e5 {[%emt 0:16:05]} 42. Bxc5 {[%emt 0:00:00]} Bd7 {[%emt 0:00:24]} 43. Be4 {[%emt 0:00:00]} Ng8 {[%emt 0:03:51]} (43... Nf5 $5 {[%cal Rf5g3]}) 44. Ke3 {[%emt 0:00:00]} Nf6 {[%emt 0:01:52]} 45. Bd6 {[%emt 0:00:00]} Ke6 {[%emt 0:00:15]} 46. Bc7 {[%emt 0:00:00]} Be8 {[%emt 0:03:03]} 47. Ba5 {[%emt 0:00:00]} g5 {[%emt 0:02:01]} 48. Bd8 {[%emt 0:00:00]} g4 {[%emt 0:02:52]} (48... Nxe4 $15 49. Kxe4 Bc6+ 50. Kd3 Kf5) 49. Ba5 {[%emt 0:00:00]} (49. Bxf6 $11 Kxf6 50. Bb7) 49... Bd7 {[%emt 0:00:20]} 50. Bb4 {[%emt 0:03:52]} Ne8 {[%emt 0:00:46]} 51. Bc2 {[%emt 0:01:01]} Bc6 {[%emt 0:02:23]} 52. Bd1 {[%emt 0:01:01]} Nf6 {[%emt 0:00:10]} 53. Be1 {[%emt 0:00:47]} Kf5 {[%emt 0:00:43]} 54. b3 {[%emt 0:00:45] [#]} (54. Bc2+ $11 {keeps the balance.} Be4 55. Bd1) 54... Nd5+ {[%emt 0:02:03]} ({Black should play} 54... b4 $1 $17 {[%cal Rb4a3]} 55. bxa4 bxa3 56. Bc2+ e4) 55. Kd3 $15 {[%emt 0:00:01]} b4 {[%emt 0:00:58][%cal Bb5b4,Bb4a3][%mdl 32]} 56. bxa4 {[%emt 0:00:35][%cal Bb3a4,Ba4a5][%mdl 32]} bxa3 {[%emt 0:00:03] ( -> ...a2)} 57. Bb3 {[%emt 0:00:25]} Nf6 {[%emt 0:00:48] Hoping for ...Bd5.} 58. a5 {[%emt 0:00:46]} Bb5+ {[%emt 0:00:13]} 59. Ke3 {[%emt 0:00:14]} Nd7 {[%emt 0:00:53]} 60. Bb4 {[%emt 0:00:16]} Nb8 $1 {[%emt 0:00:23]} 61. Bxa3 {[%emt 0:00:32]} Nc6 {[%emt 0:00:05]} 62. Bd5 {[%emt 0:00:15][%cal Oa5a6]} Nxa5 {[%emt 0:00:27]} 63. Bb4 {[%emt 0:00:06]} Nc4+ {[%emt 0:00:13]} 64. Bxc4 {[%emt 0:00:05]} Bxc4 {[%emt 0:00:04] Black had all chances to win.  Weighted Error Value: White=0.21 (precise) /Black=0.22 (precise)} 1/2-1/2

[Event "Czech Open-GM 2022"]
[Site "Pardubice"]
[Date "2022.07.24"]
[Round "3.42"]
[White "Simek, Petr"]
[Black "Mueer, Sebastian"]
[Result "1-0"]
[ECO "E04"]
[WhiteElo "2348"]
[BlackElo "2161"]
[Annotator "TA"]
[PlyCount "121"]
[EventDate "2022.07.22"]
[EventType "swiss"]
[EventCountry "CZE"]
[SourceTitle "playchess.com"]
[Source "ChessBase"]
[SourceQuality "1"]
[TimeControl "40/5400+30:1800+30"]

{[%evp 11,121,18,26,29,33,12,8,0,0,0,0,0,16,-10,0,-25,3,-20,0,-8,0,-7,0,-7,0,0,0,0,0,0,0,0,0,0,0,0,0,0,0,0,0,-6,32,17,16,16,34,31,31,29,58,62,117,79,241,86,82,79,79,63,64,58,71,54,63,54,56,52,52,36,72,37,95,95,114,114,114,114,153,114,114,114,164,164,164,164,164,114,410,379,559,492,564,543,506,477,465,426,474,454,438,427,479,432,331,222,12838,12838,12842,12842,12845,12846]} 1. d4 {[%emt 0:00:27]} Nf6 {[%emt 0:00:19]} 2. c4 {[%emt 0:00:09]} e6 {[%emt 0:00:08]} 3. Nf3 {[%emt 0:00:04]} d5 {[%emt 0:00:09][%cal Bd7d5,Bd5c4][%mdl 32]} 4. g3 {[%emt 0:00:06]} dxc4 {[%emt 0:00:06]} 5. Bg2 {[%emt 0:00:06]} Bb4+ {[%emt 0:00:07]} 6. Bd2 {[%emt 0:01:06]} a5 {[%emt 0:00:09]} 7. Qc2 {[%emt 0:00:46] E04: Open Catalan: 5 Nf3.} c5 {[%emt 0:00:44]} 8. dxc5 {[%emt 0:07:56]} Bxc5 {[%emt 0:00:36]} 9. Qxc4 {[%emt 0:01:37] The position is equal.} Nbd7 {[%emt 0:02:01]} 10. Nc3 {[%emt 0:10:42]} b6 {[%emt 0:01:25]} 11. O-O {[%emt 0:00:43] [#]} Ba6 $146 {[%emt 0:00:20]} ({Predecessor:} 11... O-O 12. Qb3 Bb7 13. Rfd1 Qe7 14. Be1 Rac8 15. Rac1 Bb4 16. a3 Nc5 17. Qa2 Bxc3 18. bxc3 {0-1 (52) Vazquez Igarza,R (2556)-Predke,A (2657) Linares 2019}) 12. Qh4 {[%emt 0:11:17]} Rc8 {[%emt 0:03:38]} 13. g4 {[%emt 0:11:53]} O-O {[%emt 0:14:18]} 14. Rfd1 {[%emt 0:14:52]} Nd5 {[%emt 0:06:00]} (14... Bb4 $5 {[%cal Rb4c3]}) 15. Qxd8 {[%emt 0:03:29]} Rfxd8 {[%emt 0:01:32]} 16. Nxd5 {[%emt 0:00:09]} exd5 {[%emt 0:00:35]} 17. e3 {[%emt 0:00:31]} Nf6 {[%emt 0:03:29]} 18. h3 {[%emt 0:00:48]} Ne4 {[%emt 0:05:43] And now ...Be2 would win.} 19. Be1 {[%emt 0:02:47]} Be2 {[%emt 0:06:44]} 20. Rdc1 {[%emt 0:00:19]} Bxf3 {[%emt 0:02:14]} 21. Bxf3 {[%emt 0:00:09]} Ng5 {[%emt 0:00:09][%csl LRf3,LRh3]} 22. Bg2 {[%emt 0:28:53]} d4 {[%emt 0:00:27]} 23. exd4 {[%emt 0:00:24]} Bxd4 {[%emt 0:00:14]} 24. Rxc8 {[%emt 0:00:13]} Rxc8 {[%emt 0:00:10]} 25. Bd2 {[%emt 0:00:07]} Ne6 {[%emt 0:04:13]} 26. Rc1 {[%emt 0:00:04] Inhibits Rc2.} Rc5 {[%emt 0:01:01]} 27. b3 {[%emt 0:01:35]} Rxc1+ {[%emt 0:05:43]} 28. Bxc1 $11 {[%emt 0:00:01][%mdl 4096] Endgame KBB-KBN} Nc5 {[%emt 0:00:11][%cal Od4f2]} 29. Bd2 {[%emt 0:02:55]} Nd3 {[%emt 0:00:32]} 30. Kf1 $1 Bb2 {[%emt 0:08:12]} 31. Be3 {[%emt 0:00:54]} b5 {[%emt 0:01:55]} (31... Nc5 $14) 32. Bc6 {[%emt 0:00:28]} b4 $2 {[%emt 0:00:40]} (32... Nb4 $16 {might work better.} 33. Bxb5 Nxa2) 33. Bb6 $2 {[%emt 0:00:05]} (33. Be4 $18 {and the rest is easy.} Ne5 34. f4) 33... Nc1 $16 {[%emt 0:01:29]} 34. Bxa5 {[%emt 0:00:04]} Nxa2 {[%emt 0:00:10]} 35. Bd5 {[%emt 0:00:58]} Bd4 {[%emt 0:02:21]} 36. Bc4 {[%emt 0:00:22] A strong pair of Bishops.} Kf8 37. Bc7 {[%emt 0:00:41]} Ke7 {[%emt 0:02:19]} 38. Bf4 {[%emt 0:00:19]} Nc3 {[%emt 0:01:10]} 39. f3 {[%emt 0:00:44]} h6 {[%emt 0:06:20]} 40. h4 Bf6 {[%emt 0:04:52]} 41. h5 {[%emt 0:07:23]} (41. Be3 $5 {[%cal Re3c5]}) 41... Bd4 {[%emt 0:01:38] [#]} (41... Bg5 $1 $14 42. Bb8 Be3) 42. Ke1 $1 {[%emt 0:00:36]} f6 {[%emt 0:00:01]} 43. Kd2 {[%emt 0:06:06]} Kd7 {[%emt 0:04:50]} 44. Kd3 {[%emt 0:00:50]} Be5 {[%emt 0:00:46]} 45. Bd2 {[%emt 0:00:58]} Kc6 {[%emt 0:01:19]} 46. Bf7 {[%emt 0:00:27]} Kc5 (46... Bd6 $16 47. Kc4 Bc5) 47. Be3+ $18 Kc6 {[%emt 0:02:28]} 48. Kc4 {[%emt 0:01:32]} Bd6 {[%emt 0:00:35]} 49. Bd2 {[%emt 0:01:08]} ({White should try} 49. Be8+ $18 Kc7 50. Bg6) 49... Na2 $2 {[%emt 0:00:59][%mdl 8192]} (49... Bc5 $16) 50. Be8+ {[%emt 0:01:11]} Kc7 {[%emt 0:02:31]} (50... Kb6 $142 51. Kd5 Be5 52. Be3+ Kc7) 51. Kd5 {[%emt 0:01:27]} Nc3+ {[%emt 0:03:16]} 52. Ke6 {[%emt 0:00:41]} Ne2 {[%emt 0:02:43]} 53. Be3 {[%emt 0:01:03] Against Nd4+} Be5 {[%emt 0:01:11]} 54. Kf7 {[%emt 0:06:38]} f5 {[%emt 0:00:34]} 55. Bc5 {[%emt 0:02:50]} Nd4 {[%emt 0:01:08]} 56. Bxb4 {[%emt 0:00:52]} Nxf3 {[%emt 0:14:05]} 57. gxf5 {[%emt 0:00:05] [#] Strongly threatening Bf8.} Nd4 {[%emt 0:00:10]} 58. Ba4 {[%emt 0:02:10]} Nxf5 $2 {[%emt 0:03:23]} (58... Bf6 59. Bf8 Nxf5) 59. Ke6 $1 {[%emt 0:00:19][%csl LRe5,LRf5] White is clearly winning.} Ng3 {[%emt 0:01:01]} 60. Kxe5 {[%emt 0:00:05]} Nxh5 {[%emt 0:00:06]} 61. Bf8 {[%emt 0:00:16] Weighted Error Value: White=0.11 (very precise) /Black=0.28 (precise)} 1-0

[Event "Czech Open-GM 2022"]
[Site "Pardubice"]
[Date "2022.07.24"]
[Round "3.43"]
[White "Sarkar, Justin"]
[Black "Folk, Petr"]
[Result "1-0"]
[ECO "E73"]
[WhiteElo "2346"]
[BlackElo "2157"]
[Annotator "TA"]
[PlyCount "57"]
[EventDate "2022.07.22"]
[EventType "swiss"]
[EventCountry "CZE"]
[SourceTitle "playchess.com"]
[Source "ChessBase"]
[SourceQuality "1"]
[TimeControl "40/5400+30:1800+30"]

{[%evp 12,57,57,48,72,59,72,61,75,60,61,50,57,56,60,47,77,66,72,66,85,75,90,75,89,84,100,72,137,89,81,71,87,60,43,0,67,66,80,60,66,-113,507,502,512,489,722,663]} 1. d4 {[%emt 0:00:12]} Nf6 {[%emt 0:00:14]} 2. c4 {[%emt 0:00:20]} g6 {[%emt 0:00:10]} 3. Nc3 {[%emt 0:00:22]} Bg7 {[%emt 0:01:37]} 4. e4 {[%emt 0:00:08]} d6 {[%emt 0:00:05]} 5. Be2 {[%emt 0:01:53]} O-O {[%emt 0:00:56]} 6. g4 {[%emt 0:00:20]} e5 {[%emt 0:03:46]} 7. d5 $1 {[%emt 0:01:06]} a5 {[%emt 0:01:07] E73: King's Indian: Averbakh Variation without 6...c5.} 8. h4 {[%emt 0:00:50][%cal Bh2h4,Bh4h5,Bh5h6][%mdl 32]} Na6 {[%emt 0:03:46]} 9. h5 {[%emt 0:01:05]} Nc5 {[%emt 0:02:04] White is slightly better.} 10. f3 {[%emt 0:18:15]} c6 {[%emt 0:07:02] [#]} 11. h6 $146 {[%emt 0:16:29]} ({Predecessor:} 11. Be3 cxd5 12. cxd5 Nfd7 13. Qd2 a4 14. Nh3 Bf6 15. O-O-O Qa5 16. Kb1 Nb3 17. Qe1 {1-0 (24) Shipov,S (2541)-Jain,K (2162) Chess.com INT 2022}) 11... Bh8 {[%emt 0:00:15]} 12. Be3 {[%emt 0:00:05]} cxd5 {[%emt 0:03:14]} 13. cxd5 {[%emt 0:00:13]} Qb6 {[%emt 0:08:14]} 14. Qd2 {[%emt 0:05:11]} Bd7 {[%emt 0:01:31]} 15. Nh3 {[%emt 0:01:49]} a4 {[%emt 0:07:43]} 16. Nf2 {[%emt 0:02:15]} Qa5 {[%emt 0:03:36]} 17. O-O {[%emt 0:08:22]} Rfc8 {[%emt 0:01:52]} 18. Nd3 {[%emt 0:05:11]} Nxd3 {[%emt 0:07:19]} 19. Bxd3 {[%emt 0:00:10]} a3 {[%emt 0:12:38] [#]} (19... Be8 $142) 20. Rfc1 {[%emt 0:02:22]} ({White should play} 20. b4 $1 {[%cal Rb4a5]} Qd8 21. Nb5) 20... axb2 $16 {[%emt 0:00:40]} 21. Qxb2 {[%emt 0:00:06]} Qd8 {[%emt 0:06:00]} 22. Be2 {[%emt 0:06:14] White is more active.} ({Don't go for} 22. Qxb7 $2 Rcb8 23. Qxb8 Rxb8 $19) 22... Ne8 {[%emt 0:00:56]} 23. Kg2 {[%emt 0:02:58]} (23. Qxb7 $2 Rcb8 24. Qxa8 Rxa8 $19) 23... Bf6 {[%emt 0:00:59]} (23... f5 $11) 24. Qd2 $1 $36 {[%emt 0:01:58][%mdl 2048] Black is under pressure.} ({Don't blunder} 24. Qxb7 $2 Rcb8 25. Qxb8 Rxb8 $19) 24... Ra3 {[%emt 0:03:21]} 25. Rab1 {[%emt 0:00:26]} Qa5 {[%emt 0:04:53][%cal Rc8c3]} 26. Rxb7 $2 {[%emt 0:16:13]} (26. Bb6 $14 {stays ahead.} Qa8 27. Rb2) 26... Raxc3 $4 {[%emt 0:04:11][%mdl 8192] [#]} (26... Rcxc3 $17 {stays on course.} 27. Ra7 Qxa7 28. Bxa7 Rxc1 29. Qxc1 Rxa7) 27. Rxd7 $1 $18 {[%emt 0:01:05][%cal Og4g5] Hoping for g5! White is clearly winning.} Qa3 {[%emt 0:04:11][%cal Rc3c1]} (27... Qa4 28. Rxc3) 28. Rxc3 {[%emt 0:01:17]} Rxc3 {[%emt 0:01:08]} (28... Qxc3 $142 29. Rb7 Qxd2 30. Bxd2 Bd8) 29. Ra7 {[%emt 0:02:32] Weighted Error Value: White=0.19 (very precise) /Black=0.41} 1-0

[Event "Czech Open-GM 2022"]
[Site "Pardubice"]
[Date "2022.07.24"]
[Round "3.44"]
[White "Bouska, Jiri"]
[Black "Stinka, Jakub"]
[Result "1/2-1/2"]
[ECO "C88"]
[WhiteElo "2157"]
[BlackElo "2335"]
[Annotator "TA"]
[PlyCount "62"]
[EventDate "2022.07.22"]
[EventType "swiss"]
[EventCountry "CZE"]
[SourceTitle "playchess.com"]
[Source "ChessBase"]
[SourceQuality "1"]
[TimeControl "40/5400+30:1800+30"]

{[%evp 22,62,4,17,13,2,-7,-3,-10,-15,0,-5,-27,-20,0,0,0,0,73,64,57,66,102,89,101,100,119,111,112,120,91,63,66,43,53,0,0,0,0,0,0,0,0]} 1. e4 {[%emt 0:00:08]} e5 {[%emt 0:00:06]} 2. Nf3 {[%emt 0:00:04]} Nc6 {[%emt 0:00:04]} 3. Bb5 {[%emt 0:00:15]} a6 {[%emt 0:00:07]} 4. Ba4 {[%emt 0:00:06]} Nf6 {[%emt 0:00:05]} 5. O-O {[%emt 0:00:12]} Be7 {[%emt 0:00:29]} 6. Re1 {[%emt 0:00:08]} b5 {[%emt 0:00:07]} 7. Bb3 {[%emt 0:00:02]} O-O {[%emt 0:00:07]} 8. h3 {[%emt 0:00:11]} Bb7 {[%emt 0:00:37]} 9. d3 {[%emt 0:00:07]} d5 {[%emt 0:02:01]} 10. exd5 {[%emt 0:04:08]} Nxd5 {[%emt 0:01:33]} 11. Nxe5 {[%emt 0:00:24]} Nxe5 $1 {[%emt 0:00:04][%mdl 4] now scores much better than the old 11...Nd4.} 12. Rxe5 {[%emt 0:00:04]} Qd6 {[%emt 0:00:13] [#] C88: Closed Ruy Lopez: Anti-Marshall Systems.} 13. Bxd5 $146 {[%emt 0:11:28]} ({Predecessor:} 13. Re1 Rae8 14. Nd2 c5 15. Ne4 Qc6 16. c4 Nb6 17. f3 Bh4 18. Re2 bxc4 19. dxc4 f5 20. Nc3 Rxe2 21. Nxe2 {½-½ (67) Maghsoodloo,P (2695)-Ding,L (2799) Chess.com INT 2021}) 13... Bxd5 {[%emt 0:03:03]} 14. Re1 {[%emt 0:02:12]} Rae8 {[%emt 0:07:06] Black wants to play ...Qc6.} 15. Nc3 {[%emt 0:03:13]} Bb7 {[%emt 0:01:10]} 16. Be3 {[%emt 0:07:19]} ({Of course not} 16. Ne4 Qc6 17. f3 f5 $15) 16... f5 {[%emt 0:07:54]} 17. f3 {[%emt 0:02:27]} Bh4 {A strong pair of Bishops.} 18. Bf2 {[%emt 0:00:00]} ({Don't blunder} 18. Re2 $2 Rxe3 $1 {[%mdl 512]} 19. Rxe3 Qd4 $19) 18... Bxf2+ {[%emt 0:24:07]} 19. Kxf2 {[%emt 0:00:00]} Qd4+ (19... b4 $11 20. Rxe8 Rxe8) 20. Kf1 $16 {[%emt 0:00:00]} b4 {[%emt 0:00:52]} 21. Ne2 {[%emt 0:04:18]} Qxb2 {[%emt 0:02:43]} 22. Qb1 {[%emt 0:00:26]} Qxb1 {[%emt 0:03:47]} 23. Rexb1 {[%emt 0:03:41]} c5 {[#]} 24. a3 $1 {[%emt 0:00:09]} a5 {[%emt 0:02:44]} 25. axb4 {[%emt 0:02:45]} axb4 26. c3 {[%emt 0:00:42]} Rb8 {[%emt 0:03:28]} 27. cxb4 {[%emt 0:06:49]} (27. Ra5 {is interesting.} Rfd8 28. Kf2 bxc3 29. Rxc5 Rbc8 30. Rxc8 Bxc8 31. Rb8) 27... cxb4 28. Rxb4 ({Better is} 28. Ra4 $14) 28... Bxf3 $1 $11 {[%emt 0:01:12] The position is equal.} 29. Rxb8 {[%emt 0:00:33]} Bxe2+ {[%emt 0:00:07]} 30. Kxe2 {[%emt 0:00:05] White wants to mate with Rxf8+.} Rxb8 {[%emt 0:02:06]} 31. Ra7 Rd8 {Weighted Error Value: White=0.07 (flawless) /Black=0.13 (very precise)} 1/2-1/2